Cogmind - Beta 15 @@@ ROGUE MODE // 2025.08.19 @ 17:21:06 Player: Heclapar Result: Destroyed by YH-IF6(R) with Subdweller Machine Gun Performance ------------- Evolutions (0) 0 Regions Visited (2) 400 Robots Destroyed (22) 110 Value Destroyed (498) 498 Prototype IDs (2) 40 Alien Tech Used (0) 0 Bonus (0) 0 TOTAL SCORE: 1048 Bonus ------- None Cogmind --------- Core Integrity 0/250 Matter 167/300 Energy 200/200 System Corruption 3% Temperature Cool (34) Movement Core (300) Ox5 Location -10/Subcaves Parts ------- > --- POWER (1) -------- Subdweller Power Source > --- PROPULSION (2) --- (None) > --- UTILITY (2) ------ Improved Heat Sink Medium Storage Unit > --- WEAPON (2) ------- Small Laser > --- INVENTORY (10) --- Ion Engine Light Treads Light Treads Aluminum Leg Medium Matter Pod (100) Terrain Scanner Targeting Computer Grenade Launcher Grenade Launcher Peak State ------------ > --- POWER ------------ Subdweller Power Source > --- PROPULSION ------- Aluminum Leg Aluminum Leg > --- UTILITY ---------- Improved Heat Sink Medium Storage Unit > --- WEAPON ----------- Light Assault Rifle Subdweller Machine Gun > --- INVENTORY -------- Ion Engine Light Treads Light Treads Aluminum Leg Medium Matter Pod Terrain Scanner Targeting Computer Small Laser Grenade Launcher Grenade Launcher [Rating: 12] Favorites ----------- Power Ion Engine Engine Ion Engine Propulsion Aluminum Leg Leg Aluminum Leg Utility Improved Heat Sink Device Improved Heat Sink Storage Medium Storage Unit Weapon Small Laser Energy Gun Small Laser Ballistic Gun Light Assault Rifle Launcher Grenade Launcher Build | -11 -10 -10 ------- Run | Yrd Mat Sub Slots Evolved . | . . . Power . | . . . Propulsion . | . . . Utility . | . . . Weapon . | . . . Parts Attached 16 | . 13 3 Power 3 | . 2 1 Engine 3 | . 2 1 Core . | . . . Reactor . | . . . Propulsion 5 | . 5 . Treads . | . . . Leg 5 | . 5 . Wheel . | . . . Hover . | . . . Flight . | . . . Utility 2 | . 2 . Device 1 | . 1 . Storage 1 | . 1 . Processor . | . . . Hackware . | . . . Protection . | . . . Artifact . | . . . Weapon 6 | . 4 2 Energy Gun 3 | . 3 . Energy Cannon . | . . . Ballistic Gun 2 | . 1 1 Ballistic Cannon . | . . . Launcher 1 | . . 1 Special Weapon . | . . . Impact Weapon . | . . . Slashing Weapon . | . . . Piercing Weapon . | . . . Special Melee Weapon . | . . . Unidentified Prototypes . | . . . Parts Lost 6 | . . 6 Power 1 | . . 1 Propulsion 2 | . . 2 Utility . | . . . Weapon 3 | . . 3 Highest Loss Streak 4 | . . 4 To Critical Strikes . | . . . Average Backups 8 | . 8 9 Power 1 | . 1 1 Propulsion 3 | . 3 3 Utility 2 | . 1 3 Weapon 2 | . 1 2 Tool/Special . | . . . Unused Backups 14 | . 10 4 Power 2 | . 2 . Propulsion 4 | . 4 . Utility 5 | . 2 3 Weapon 3 | . 2 1 Tool/Special . | . . . Average Slot Usage (%) 97 | . 98 95 Engine 13 | . 14 13 Leg 27 | . 28 25 Device 12 | . 12 14 Storage 14 | . 14 14 Energy Gun 12 | . 14 6 Ballistic Gun 15 | . 14 18 Peak Build Rating 12 | . 10 12 Average Rating 9 | . 8 10 On Entrance 7 | 6 6 10 Naked Turns . | . . . Heaviest Build 21 | 14 19 21 Greatest Support 20 | 20 20 20 Greatest Overweight (x) 1 | . . 1 Average Overweight (x) . | . . . Largest Inventory Capacity 10 | . 10 10 Average Capacity 9 | . 9 10 Most Carried 10 | . 10 10 Average Carried 8 | . 8 9 Final Capacity 10 | 8 10 10 Final Carried 10 | 6 10 9 Class Distribution -------------------- 75% | Scavenger-Mutant 24% | Mutant Dominant Class ---------------- Scavenger-Mutant | -10/Materials Scavenger-Mutant | -10/Subcaves Resources | -11 -10 -10 ----------- Run | Yrd Mat Sub Matter Collected 631 | 200 419 12 Remotely . | . . . Salvage Created 659 | . 602 57 Parts 52 | . 45 7 Haulers Intercepted . | . . . Recyclers Shooed 1 | . 1 . Parts Field Recycled . | . . . Retrieved Matter . | . . . Parts Self-Destructed . | . . . Prevented . | . . . Kills | -11 -10 -10 ------- Run | Yrd Mat Sub Combat Hostiles Destroyed 17 | . 14 3 Guns 15 | . 14 1 AOE 2 | . . 2 Classes Destroyed 7 | . 6 1 Worker 1 | . 1 . Builder 2 | . 2 . Recycler 1 | . 1 . Watcher 1 | . 1 . Swarmer 6 | . 6 . Grunt 8 | . 8 . Subdweller 3 | . . 3 Best Kill Streak 4 | . 4 2 Combat Bots Only 4 | . 4 2 Max Kills in Single Turn 2 | . 2 1 Gunslinging . | . . . Exploded 1 | . . 1 Melee . | . . . Uniques/NPCs Destroyed . | . . . Combat | -11 -10 -10 -------- Run | Yrd Mat Sub Hostile Shots Fired 97 | . 73 24 Missed 19 | . 12 7 Hits 78 | . 61 17 Projectile 78 | . 61 17 AOE 7 | . . 7 Damage Taken 1315 | . 641 674 Core 254 | . 110 144 Absorbed by Shields . | . . . Regen/Repaired (Parts) 41 | . 41 . Core Remaining (%) 100 | 100 . . Volleys Fired 86 | . 65 21 Largest 2 | . 2 2 Hottest 60 | . 60 60 Shots Fired 166 | . 130 36 Gun 159 | . 130 29 Cannon . | . . . Launcher 7 | . . 7 Special . | . . . Kinetic 85 | . 65 20 Thermal 64 | . 55 9 Explosive 7 | . . 7 Electromagnetic 10 | . 10 . Robot Hit Streak 11 | . 11 5 Robot Miss Streak 4 | . 4 2 Penetration Max . | . . . Secondary Targets . | . . . Shots Hit Robots 90 | . 69 21 Core Hits 36 | . 30 6 Critical Kills . | . . . Critical Parts Destroyed . | . . . Critical Strikes . | . . . Melee Attacks . | . . . Impact . | . . . Slashing . | . . . Piercing . | . . . Sneak Attacks . | . . . Combat Hostiles . | . . . Follow-up Attacks . | . . . Damage Inflicted 1211 | . 815 396 Guns 909 | . 815 94 Cannons . | . . . Explosions 302 | . . 302 Melee . | . . . Ramming . | . . . Kinetic 456 | . 372 84 Thermal 350 | . 340 10 Explosive 302 | . . 302 Electromagnetic 103 | . 103 . Impact . | . . . Slashing . | . . . Piercing . | . . . Highest Corruption 3 | . 3 3 Average Corruption 2 | . 2 3 Corruption Purged . | . . . Corruption Blocked . | . . . Effects 23 | . 16 7 Message Errors 4 | . 3 1 Matter Fused 6 | . 5 1 Heat Flow Errors 3 | . 1 2 Energy Discharges 5 | . 3 2 Data Loss (minor) 4 | . 4 . Misfires 1 | . . 1 Overload Shots . | . . . Overflow Damage 6 | . . 6 Projectiles . | . . . Explosions 6 | . . 6 Melee . | . . . Knockbacks . | . . . Impact . | . . . Kinetic . | . . . Secondary . | . . . Self-Inflicted Damage 84 | . . 84 Shots 3 | . . 3 Rammed . | . . . Targets Rammed . | . . . Kicked . | . . . Crushed . | . . . Highest Temperature 215 | . 215 163 Average Temperature 63 | . 59 88 Received Heat Transfer 243 | . 237 6 Siege Activations . | . . . Martial Activations . | . . . Shielding Activations . | . . . Robots Disrupted . | . . . Combat Hostiles . | . . . Robots Corrupted . | . . . Combat Hostiles . | . . . Parts Fried . | . . . Impact Corruptions . | . . . Robots Melted . | . . . Combat Hostiles . | . . . Parts Melted 1 | . 1 . Heat Transferred 800 | . 775 25 Parts Sabotaged . | . . . Parts Stolen . | . . . Parts Stripped . | . . . Power Chain Reactions . | . . . Alert | -11 -10 -10 ------- Run | Yrd Mat Sub Maximum Alert Level . | . . . Low Security (%) 100 | . 100 . Level 1 . | . . . Level 2 . | . . . Level 3 . | . . . Level 4 . | . . . Level 5 . | . . . High Security . | . . . Max Security . | . . . Peak Influence 92 | . 92 . Initial . | . . . Average 34 | . 34 . Influence Increases 385 | . 385 . Destroy 0b10 Robot/C 280 | . 280 . Destroy 0b10 Robot/NC 25 | . 25 . Destroy Leader 52 | . 52 . Successful Hack 12 | . 12 . Destroy Structure 1 | . 1 . Lose Combat Pursuer 15 | . 15 . Influence Decreases 385 | . 328 57 Entered New Map 28 | . . 28 Time Decay 357 | . 328 29 Squads Dispatched 2 | . 2 . Investigation . | . . . Extermination . | . . . Reinforcement 2 | . 2 . Assault . | . . . Garrison . | . . . Intercept . | . . . Searches Triggered . | . . . Construction Impeded . | . . . Haulers Reinforced . | . . . Active Scanning Responses . | . . . Cargo Convoy Interrupts . | . . . Stealth | -11 -10 -10 --------- Run | Yrd Mat Sub Distress Signals 1 | . 1 . Communications Jammed . | . . . Distress Signals . | . . . Times Spotted 28 | . 23 5 Peak Tracking Total 4 | . 4 2 Tactical Retreats 1 | . 1 . Traps | -11 -10 -10 ------- Run | Yrd Mat Sub Traps Triggered 2 | . 2 . Indirectly . | . . . Trap Hack Attempts . | . . . Triggered . | . . . Disarmed . | . . . Reprogrammed . | . . . Reused . | . . . Traps Extracted . | . . . Installed . | . . . Triggered . | . . . Machines | -11 -10 -10 ---------- Run | Yrd Mat Sub Machines Disabled . | . . . Max in Single Turn . | . . . Machines Repaired . | . . . Machines Dismantled . | . . . Machines Sabotaged . | . . . Overloaded Fab Kills . | . . . Hacking | -11 -10 -10 --------- Run | Yrd Mat Sub Machines Accessed 3 | . 3 . Terminals 2 | . 2 . Fabricators . | . . . Repair Stations 1 | . 1 . Recycling Units . | . . . Scanalyzers . | . . . Garrison Access . | . . . Total Hacks 10 | . 10 . Successful 5 | . 5 . Failed 5 | . 5 . Catastrophic . | . . . Database Lockouts . | . . . Manual . | . . . Terminals 8 | . 8 . Fabricators . | . . . Repair Stations 2 | . 2 . Recycling Units . | . . . Scanalyzers . | . . . Garrison Access . | . . . Terminal Hacks 3 | . 3 . Prototype ID Bank 1 | . 1 . Alert Level 1 | . 1 . Hauler Manifests 1 | . 1 . Fabricator Hacks . | . . . Repair Station Hacks 2 | . 2 . Scan Component 1 | . 1 . Repair 1 | . 1 . Recycling Unit Hacks . | . . . Scanalyzer . | . . . Garrison Access Hacks . | . . . Unauthorized Hacks . | . . . Terminals . | . . . Fabricators . | . . . Repair Stations . | . . . Recycling Units . | . . . Scanalyzers . | . . . Garrison Access . | . . . Data Cores Recovered . | . . . Used . | . . . Hacking Detections 2 | . 2 . Full Trace Events . | . . . Feedback Events . | . . . Feedback Blocked . | . . . Robot Schematics Acquired . | . . . Robots Built . | . . . Authchips . | . . . Time . | . . . Total Robot Build Rating . | . . . Part Schematics Acquired . | . . . Parts Built . | . . . Authchips . | . . . Time . | . . . Total Part Build Rating . | . . . Parts Repaired 1 | . 1 . Time 26 | . 26 . Parts Recycled . | . . . Recycled Matter . | . . . Retrieved Matter . | . . . Retrieved Components . | . . . Parts Scanalyzed . | . . . Part Schematics Acquired . | . . . Parts Damaged . | . . . Bothacking | -11 -10 -10 ------------ Run | Yrd Mat Sub Used RIF Installer . | . . . Robots Hacked . | . . . Non-combat . | . . . Combat . | . . . Robot Hacks Applied . | . . . Relay Couplers Released . | . . . Fabnet Peak Effective % . | . . . Robots Rewired . | . . . Allies Hacked . | . . . Hacks Repelled . | . . . Allies | -11 -10 -10 -------- Run | Yrd Mat Sub Total Allies . | . . . Largest Group . | . . . Highest-Rated Group . | . . . Highest-Rated Ally . | . . . Total Orders . | . . . Ally Attacks . | . . . Total Damage . | . . . Kills . | . . . Allies Corrupted . | . . . Allies Melted . | . . . Intel | -11 -10 -10 ------- Run | Yrd Mat Sub Active Infowar (turns) . | . . . Robot Analysis Total . | . . . Derelict Logs Recovered . | . . . Drone Launches . | . . . Drone Recoveries . | . . . Exploration | -11 -10 -10 ------------- Run | Yrd Mat Sub Turns Passed 1064 | . 831 233 Spaces Moved 594 | 1 477 116 Core . | . . . Treads . | . . . Legs 594 | 1 477 116 Wheels . | . . . Hover . | . . . Flight . | . . . Fastest Speed 120 | 120 120 120 Average Speed 124 | 120 120 140 Slowest Speed 190 | 120 120 190 Overloaded Moves . | . . . Propulsion Burnouts . | . . . Robots Hopped . | . . . Potential Cave-ins . | . . . Cave-ins Triggered . | . . . Exploration Rate (%) 28 | 2 72 10 Regions Visited 2 Branch Regions 1 Pre-discovered Areas . | . . . Known Exits Taken . | . . . Unknown Exits Taken 2 | 1 1 . Scrap Searched . | . . . Spaces Dug . | . . . Terrain Destroyed 35 | . . 35 Melee . | . . . Projectile . | . . . AOE 35 | . . 35 Terrain Rammed . | . . . Walls Destroyed . | . . . Machines Disabled . | . . . Actions | -11 -10 -10 --------- Run | Yrd Mat Sub Total 762 | . 611 151 Wait 45 | . 39 6 Move 592 | . 476 116 Hop . | . . . Pick Up 7 | . 6 1 Fast Attach 3 | . 2 1 Attach 2 | . . 2 Detach . | . . . Swap 15 | . 11 4 Drop 12 | . 12 . Fire 86 | . 65 21 Melee . | . . . Ram . | . . . Kick . | . . . Crush . | . . . Escape Stasis . | . . . Rewire . | . . . Trap . | . . . Miscellaneous . | . . . Route ------- -11/Scrapyard -10/Materials (discovered 4 exits: [*Mat] / [*Min x2] / [*Sub]) -10/Subcaves (discovered 1 exit: [*Mat]) History --------- Turn | Location | Event 1 | -11/Scrapyard | Discovered new exit (range 0) 1 | -11/Scrapyard | Entered Materials 283 | -10/Materials | Discovered new exit (range 16) 439 | -10/Materials | Discovered new exit (range 8) 547 | -10/Materials | Build established: Scavenger-Mutant 635 | -10/Materials | Repaired Sml. Laser 667 | -10/Materials | Discovered new exit (range 16) 821 | -10/Materials | Discovered new exit (range 10) 832 | -10/Materials | Entered Subcaves 842 | -10/Subcaves | Discovered new exit (range 6) 946 | -10/Subcaves | Core integrity fell below 50% 1059 | -10/Subcaves | Ambushed by Subdweller buried in earth 1062 | -10/Subcaves | Core integrity fell below 20% 1065 | -10/Subcaves | Destroyed by YH-IF6(R) with Subdweller Machine Gun Last Messages --------------- Source. 00972_ Acquired Sub. Power Source. 00973_ System corrupted: Energy discharge (-25). 00976_ Acquired Sub. Machine Gun. 00977_ Acquired 12 matter. 00979_ The unstable cave ceiling collapses. 00984_ Subatomizers dissect the Sub. Power Source. 01001_ System corrupted: FCS attempts to trigger Lgt. Assault Rifle. 01001_ System corrupted: Lgt. Assault Rifle misfires. 01012_ The unstable cave ceiling collapses. 01020_ System corrupted: Matter fused (-10). 01048_ Aluminum Leg destroyed. 01053_ TH-7FR(R) destroyed. 01059_ Sub. Machine Gun destroyed. 01060_ YH-IF6(R): "HIDIE!" 01061_ System corrupted: Heat flow error (+190). 01065_ Lgt. Assault Rifle destroyed. Map ----- +----------------------------------------------------+ | ?# #### ### " ##??????????????? | | ?# #####??## ##?## ## #??????????????? | | ?#####???????#####???##### # # #??????????????? | | ?????????????????????????# # ###??????????????? | | ?????????????????????????## ##??????????????? | | ???????????????????" ""???# " #??????????????? | | ?????????????????? " """#?## "" "##??????????????? | | ?????????????????# " ## " #???????????????? | | ????????????????? " ##??????????????? | | ???????????????? ## #??????????????? | | ??????????????????? ?# ##??????????????? | | ???????????????????#### ## ##???????????????? | | ??????????????????????# ##????????????????? | | ??????????????????????# ##????????????????? | | ??????????????????????# #????????????????? | | ??????????????????????## ##????????????????? | | ???????????????????????# ## #????????????????? | | ???????????????????###### ### ###???????????????? | | ??????????????????## #; ; #???????????????? | | ??????????????????# ;;;; #???????????????? | | ??????????????????##; R #???????????????? | | ??????????????????#; #????????????????? | | ??????????? ?????#; # #??????????????? | | ?????????? # #??????????????? | | ?????????????# #??????????????? | | ?????????????# @ #??????????????? | | ?????????????## #???????????????? | | ??????????????# ; #???????????????? | | ??????????????# ;##???????????????? | | ?????????????# R #????????????????? | | ????????????# "] #????????????????? | | ???????????? ### " #????????????????? | | ????????????????# """ ##????????????????? | | ????????????????###### """ #?????????????????? | | ?????????????????????######""" ?????????????????? | | ???????????????????????????""" ????????????????? | | ???????????????????????????""? ????????????????? | | ???????????????????????????????# ???????????????? | | ?????????????????????????????????????????????????? | | ?????????????????????????????????????????????????? | | ?????????????????????????????????????????????????? | | ?????????????????????????????????????????????????? | | ?????????????????????????????????????????????????? | | ?????????????????????????????????????????????????? | | ?????????????????????????????????????????????????? | | ?????????????????????????????????????????????????? | | ?????????????????????????????????????????????????? | | ?????????????????????????????????????????????????? | | ?????????????????????????????????????????????????? | | ?????????????????????????????????????????????????? | +----------------------------------------------------+ Best States ------------- Heat Dissipation 39 Energy Generation 15 Energy Capacity 250 Matter Stores 300 Matter Capacity 300 Sight Range 16 Terrain Scan Density 10 Evasion (%) 55 Item Schematics ----------------- None Robot Schematics ------------------ None Fabricated ------------ Nothing Repaired ---------- Sml. Laser | 41% | -10/Materials Alien Tech Used ----------------- None Achievements -------------- None Challenges ------------ None Game ------ Seed SapperCoilScrapsphere Manual? 0 Play Time 00:13:31 Cumulative 106.0 hours Start 2025.08.15 @ 19:31:12 End 2025.08.19 @ 17:21:06 Sessions 2 Manual Loads 0 Difficulty Rogue Special Mode None Game No. 129 Rogue 129 Adventurer 0 Explorer 0 Win Type - Total 1 Types 1/0/0/0/0/0/0/0/0/0 Lore% 47 Gallery% 52 Achievement% 54 Wizard Run 0 Options --------- Layout 2 ASCII 0 Keyboard 0 Movement Arrows Keybinds 0 Fullscreen 1 Font 32/Terminus Map View 50x44 Zoom Use 0% Tactical HUD 1 Map Filters NONE Filters NONE Steam 1 RUN: e2c59ff2-1d03-4308-b8a6-93c6fe022772